bitfinex/quotes_SOLUSD_20250908
["timestamp","ask_amount","ask_price","bid_price","bid_amount"]
[1757334107349,0.06,213.88,213.87,69.56869431]
[1757334110165,0.06,213.88,213.87,67.07573759]
[1757334110465,0.06,213.88,213.87,69.56869431]
[1757334110663,0.06,213.88,213.87,44.24869431]
[1757334110862,0.06,213.88,213.87,7.84869431]
[1757334111065,0.06,213.88,213.87,9.719208]
[1757334111256,0.06,213.89,213.87,44.71626806]
[1757334111453,0.06,213.91,213.9,26.0]
[1757334111776,0.06,213.91,213.9,64.89295672]
[1757334111950,0.06,213.91,213.9,70.24803853]
[1757334112266,0.06,213.93,213.9,70.71554671]
[1757334112473,0.06,213.93,213.92,2.49295672]
[1757334112658,0.06,213.93,213.92,38.89295672]
[1757334112968,0.06,213.93,213.92,39.57295672]
[1757334113853,0.06,213.93,213.92,44.24760144]
[1757334115376,0.1,213.94,213.92,46.74055816]
[1757334115584,0.1,213.94,213.93,6.13335606]
[1757334115961,0.06,213.96,213.95,26.0]
[1757334116161,0.06,213.96,213.95,67.36591344]
[1757334116458,0.06,213.98,213.95,68.51331236]
[1757334116664,0.1,214.02,214.0,2.49295672]
[1757334116862,0.1,214.02,214.0,64.87295672]
[1757334117271,0.1,214.02,214.0,38.87295672]
[1757334117868,0.1,214.02,214.0,43.54585391]
[1757334118071,0.1,214.02,214.0,44.22585391]
[1757334118579,0.1,214.02,214.0,48.96369673]
[1757334119170,0.1,214.02,214.0,26.0]
[1757334119479,0.73,214.01,214.0,60.16413344]
[1757334119666,0.06,214.01,214.0,60.16413344]
[1757334120068,0.73,214.01,214.0,62.38]
[1757334120275,0.73,214.01,214.0,64.87295672]
[1757334121063,0.06,214.01,214.0,67.05289719]
[1757334121271,0.06,214.01,214.0,69.54585391]
[1757334124184,0.06,214.01,214.0,70.22585391]
[1757334126588,0.06,214.01,214.0,69.54585391]
[1757334130898,0.75,214.01,214.0,33.16585391]
[1757334131103,0.75,214.01,214.0,28.49295672]
[1757334131685,0.75,214.01,214.0,28.52295672]
[1757334131986,0.75,214.01,214.0,26.03]
[1757334132181,0.06,214.01,214.0,33.19585391]
[1757334132379,0.06,214.01,214.0,33.91585391]
[1757334135088,0.06,214.01,214.0,33.19585391]
[1757334135295,0.06,214.01,214.0,33.91585391]
[1757334136095,0.06,214.01,214.0,33.19585391]
[1757334136693,0.06,214.01,214.0,30.70289719]
[1757334136897,0.06,214.01,214.0,7.19585391]
[1757334140403,0.75,214.01,214.0,4.70289719]
[1757334140706,3.24295672,214.01,214.0,0.03]
[1757334141304,3.24295672,214.01,213.97,0.03]
[1757334141600,2.49295672,213.98,213.97,0.03]
[1757334141981,3.18295672,213.98,213.97,0.03]
[1757334142701,7.85629067,213.98,213.97,0.03]
[1757334142887,3.18295672,213.98,213.97,0.03]
[1757334145111,7.85629067,213.98,213.97,0.03]
[1757334145311,21.45188468,213.98,213.97,0.03]
[1757334146018,5.36333395,213.98,213.97,0.03]
[1757334146324,7.85629067,213.98,213.97,0.03]
[1757334146688,3.18295672,213.98,213.97,0.03]
[1757334146881,0.69,213.98,213.97,0.03]
[1757334148208,0.75,214.01,213.97,0.03]
[1757334148383,0.06,214.01,213.98,2.49295672]
[1757334148581,0.69,214.0,213.97,26.03]
[1757334148775,0.69,213.99,213.97,26.03]
[1757334149005,2.55295672,214.01,213.97,4.70346854]
[1757334149184,0.69,214.0,213.97,4.70346854]
[1757334149592,0.69,213.99,213.97,4.70346854]
[1757334151407,0.69,213.99,213.97,0.03]
[1757334152487,0.69,213.99,213.98,2.49295672]
[1757334153518,0.69,213.99,213.97,2.52295672]
[1757334154016,4.73268787,214.01,213.97,2.52295672]
[1757334154188,0.69,214.0,213.97,2.52295672]
[1757334155700,0.69,214.0,213.97,7.19648826]
[1757334156012,0.06,214.01,213.98,2.49295672]
[1757334156320,0.78,214.01,213.98,2.49295672]
[1757334156524,0.06,214.01,213.98,2.49295672]
[1757334156688,0.06,214.01,213.99,2.49295672]
[1757334156887,0.06,214.01,213.99,7.16602875]
[1757334157508,0.06,214.01,213.99,2.49295672]
[1757334158818,0.06,214.01,214.0,2.49295672]
[1757334159130,0.06,214.01,214.0,33.81585391]
[1757334160009,0.06,214.01,214.0,28.49295672]
[1757334160310,0.06,214.01,214.0,29.8921931]
[1757334163899,0.06,214.01,214.0,34.56509029]
[1757334165036,0.06,214.01,214.0,35.21509029]
[1757334165405,0.06,214.01,214.0,34.56509029]
[1757334167026,0.06,214.01,214.0,35.21509029]
[1757334167226,0.06,214.01,214.0,34.56509029]
[1757334168224,0.06,214.01,214.0,35.21509029]
[1757334169327,0.06,214.01,214.0,29.8921931]
[1757334170730,0.06,214.01,214.0,29.9221931]
[1757334174806,0.06,214.01,214.0,30.5721931]
[1757334176308,0.06,214.01,214.0,35.24509029]
[1757334176906,0.06,214.01,214.0,0.03]
[1757334177225,0.78,214.01,214.0,0.03]
[1757334177524,0.06,214.01,214.0,0.03]
[1757334177707,0.06,214.01,214.0,3.9221931]
[1757334184626,0.78,214.01,214.0,0.03]
[1757334187321,5.45267884,214.01,214.0,0.03]
[1757334187517,0.78,214.01,214.0,0.03]
[1757334187724,0.06,214.01,214.0,0.03]
[1757334188331,0.77,214.01,214.0,0.03]
[1757334189602,0.06,214.01,214.0,0.03]
[1757334189832,0.77,214.01,214.0,0.03]
[1757334190822,5.44267884,214.01,214.0,0.03]
[1757334191432,9.33487194,214.01,214.0,0.03]
[1757334191634,45.65487194,214.01,214.0,0.03]
[1757334191818,61.12097964,214.01,214.0,0.03]
[1757334193338,1.93051369,214.01,214.0,0.7]
[1757334193541,4.73267884,214.01,214.0,0.03]
[1757334194416,5.44267884,214.01,214.0,0.03]
[1757334195714,9.33487194,214.01,214.0,0.03]
[1757334196415,88.93487194,214.01,214.0,0.03]
[1757334196738,102.53046595,214.01,214.0,0.03]
[1757334196918,24.80097964,214.01,214.0,0.03]
[1757334197941,41.05267884,214.01,214.0,0.03]
[1757334198719,9.33487194,214.01,214.0,0.03]
[1757334198919,5.44267884,214.01,214.0,0.03]
[1757334199714,22.93046595,214.01,214.0,0.03]
[1757334200119,24.80097964,214.01,214.0,0.03]
[1757334203222,13.59559401,213.96,213.95,0.03]
[1757334203432,57.69998021,213.96,213.95,0.03]
[1757334203631,58.40998021,213.96,213.92,0.03]
[1757334203834,22.16221332,213.93,213.92,0.03]
[1757334204045,54.59002022,213.93,213.92,0.03]
[1757334204232,59.19221332,213.93,213.92,0.03]
[1757334204633,63.11440642,213.93,213.92,0.03]
[1757334205842,22.19221332,213.93,213.92,0.03]
[1757334206038,58.51221332,213.93,213.92,0.03]
[1757334206250,54.59002022,213.93,213.92,0.03]
[1757334206549,1.87121371,213.94,213.92,0.7]
[1757334206746,36.32,213.95,213.92,3.9221931]
[1757334206928,40.99401259,213.95,213.93,0.67]
[1757334207443,40.99401259,213.95,213.92,0.03]
[1757334207744,44.88620569,213.95,213.92,0.03]
[1757334208049,45.59620569,213.95,213.92,0.03]
[1757334208350,44.88620569,213.95,213.92,0.03]
[1757334209753,45.59620569,213.95,213.92,0.03]
[1757334210442,44.88620569,213.95,213.92,0.03]
[1757334211048,4.67401259,213.95,213.92,0.7]
[1757334211237,40.99401259,213.95,213.92,0.7]
[1757334211441,4.67398719,213.96,213.93,0.67]
[1757334211659,40.99398719,213.96,213.93,0.67]
[1757334212845,79.6,213.96,213.94,0.67]
[1757334213248,79.6,213.96,213.95,0.67]
[1757334215553,79.6,213.96,213.95,4.5621931]
[1757334217832,79.6,213.96,213.94,3.8921931]
[1757334218035,79.6,213.96,213.95,4.5621931]
[1757334218256,79.6,213.96,213.94,3.8921931]
[1757334218451,79.6,213.96,213.94,4.5621931]
[1757334220259,79.6,213.96,213.94,0.67]
[1757334220756,0.72,213.95,213.92,0.03]
[1757334220957,5.39415782,213.95,213.92,0.03]
[1757334221161,0.72,213.94,213.92,0.03]
[1757334221359,3.21282497,213.94,213.92,0.03]
[1757334221670,3.21282497,213.93,213.92,0.03]
[1757334221864,0.72,213.93,213.92,0.03]
[1757334222547,7.16698279,213.95,213.92,0.03]
[1757334222858,41.71415782,213.95,213.92,0.03]
[1757334223055,5.39415782,213.95,213.92,0.03]
[1757334223360,115.92,213.96,213.92,0.7]
[1757334223547,115.92,213.96,213.93,0.03]
[1757334223740,116.64,213.96,213.93,0.03]
[1757334223941,116.7,213.96,213.93,0.03]
[1757334224661,5.39414177,213.95,213.93,0.03]
[1757334225744,0.72,213.94,213.93,0.03]
[1757334226759,5.39420772,213.94,213.93,0.03]
[1757334227963,41.71420772,213.94,213.93,0.03]
[1757334228757,44.20703269,213.94,213.93,0.03]
[1757334229561,5.39403014,213.95,213.93,0.03]
[1757334229771,0.72,213.94,213.93,0.03]
[1757334230143,80.32,213.94,213.93,0.03]
[1757334230450,84.27420772,213.94,213.93,0.03]
[1757334231543,84.99420772,213.94,213.93,0.03]
[1757334232347,84.27420772,213.94,213.93,0.03]
[1757334240267,79.6,213.94,213.93,0.03]
[1757334240679,79.6,213.94,213.93,2.52282497]
[1757334240869,40.97402002,213.95,213.93,2.52282497]
[1757334241068,41.7538163,213.96,213.93,3.19282497]
[1757334241268,41.0338163,213.96,213.93,3.19282497]
[1757334241886,41.7538163,213.96,213.93,2.52282497]
[1757334242382,41.0338163,213.96,213.93,3.19282497]
[1757334243157,41.7538163,213.96,213.93,2.52282497]
[1757334245491,0.67,213.95,213.93,0.03]
[1757334245693,36.3,213.94,213.93,0.03]
[1757334245894,52.38841898,213.94,213.93,0.03]
[1757334246090,53.05841898,213.94,213.93,0.03]
[1757334246598,54.9296327,213.94,213.93,0.03]
[1757334247663,57.11101545,213.94,213.93,0.03]
[1757334247871,4.67420772,213.94,213.93,0.03]
[1757334248176,40.97420772,213.94,213.93,0.03]
[1757334248481,36.3,213.94,213.93,0.69]
[1757334248672,173.3740124,213.95,213.93,0.69]
[1757334248865,173.3740124,213.95,213.93,3.18282497]
[1757334249264,132.4,213.95,213.93,3.18282497]
[1757334249687,41.03386884,213.96,213.93,3.18282497]
[1757334250286,41.70386884,213.96,213.93,2.52282497]
[1757334250483,41.03386884,213.96,213.93,0.69]
[1757334250682,4.73387525,213.96,213.93,0.69]
[1757334250880,4.73387525,213.96,213.93,3.18282497]
[1757334251674,0.06,213.96,213.93,3.18282497]
[1757334251882,0.06,213.96,213.95,2.49282497]
[1757334252380,0.06,213.96,213.95,3.15282497]
[1757334253269,0.06,213.96,213.95,2.49282497]
[1757334255493,0.06,213.96,213.9,0.03]
[1757334255494,81.61124395,213.96,213.9,0.03]
[1757334255692,16.08841898,213.91,213.9,0.03]
[1757334256000,52.40841898,213.91,213.9,0.03]
[1757334256174,53.07841898,213.91,213.9,0.03]
[1757334256375,59.62502132,213.91,213.9,0.03]
[1757334257389,23.30502132,213.91,213.9,0.03]
[1757334257572,59.62502132,213.91,213.9,0.03]
[1757334261099,59.62502132,213.91,213.9,0.03]
[1757334261483,20.14219635,213.91,213.9,0.03]
[1757334261703,58.95502132,213.91,213.9,0.03]
[1757334261900,20.14219635,213.91,213.9,0.03]
[1757334262200,57.08328224,213.91,213.9,0.03]
[1757334262387,18.27045727,213.91,213.9,0.03]
[1757334262587,57.08328224,213.91,213.9,0.03]
[1757334262987,57.75328224,213.91,213.9,0.03]
[1757334263996,21.43328224,213.91,213.9,0.03]
[1757334264233,57.75328224,213.91,213.9,0.03]
[1757334268100,21.43328224,213.91,213.9,0.03]
[1757334268303,57.73328224,213.91,213.9,0.03]
[1757334269788,57.06328224,213.91,213.9,0.03]
[1757334269990,57.06328224,213.91,213.85,0.03]
[1757334269991,26.0,213.88,213.85,0.03]
[1757334270295,2.49282497,213.86,213.85,0.03]
[1757334270498,53.10841898,213.86,213.85,0.03]
[1757334270790,55.65068371,213.86,213.85,0.03]
[1757334270997,60.32663994,213.86,213.85,0.03]
[1757334275909,23.30663994,213.86,213.85,0.03]
[1757334276108,60.28663994,213.86,213.85,0.03]
[1757334276486,20.14381497,213.86,213.85,0.03]
[1757334276704,59.59663994,213.86,213.85,0.03]
[1757334278003,18.27155024,213.86,213.85,0.69]
[1757334278202,4.67595623,213.86,213.85,0.69]
[1757334278511,4.67595623,213.86,213.85,0.03]
[1757334278512,44.1087812,213.86,213.85,0.03]
[1757334279595,44.1087812,213.86,213.85,0.69]
[1757334279909,57.70437521,213.86,213.85,0.03]
[1757334280225,39.59559401,213.83,213.82,0.03]
[1757334280398,79.02841898,213.83,213.82,0.03]
[1757334281697,83.70503124,213.83,213.82,0.03]
[1757334282413,86.98644803,213.83,213.82,0.03]
[1757334282616,85.11427092,213.83,213.82,0.03]
[1757334283413,81.87220627,213.83,213.82,0.03]
[1757334283602,85.77427092,213.83,213.82,0.03]
[1757334284217,87.64671094,213.83,213.82,0.03]
[1757334284613,50.70671094,213.83,213.82,0.03]
[1757334284916,87.62671094,213.83,213.82,0.03]
[1757334285299,50.70671094,213.83,213.82,0.03]
[1757334285496,87.60671094,213.83,213.82,0.03]
[1757334286213,50.70671094,213.83,213.82,0.03]
[1757334286410,87.60671094,213.83,213.82,0.03]
[1757334288125,50.04671094,213.83,213.82,0.03]
[1757334288326,86.94671094,213.83,213.82,0.03]
[1757334288704,86.92671094,213.83,213.82,0.03]
[1757334289220,87.58671094,213.83,213.82,0.03]
[1757334292129,87.54671094,213.83,213.82,0.03]
[1757334294325,97.00765866,213.8,213.79,0.03]
[1757334294521,133.80765866,213.8,213.79,0.03]
[1757334295123,133.80765866,213.8,213.79,0.69]
[1757334295328,138.48492713,213.8,213.79,0.69]
[1757334296129,101.68492713,213.8,213.79,0.69]
[1757334296319,138.48492713,213.8,213.79,0.69]
[1757334299322,138.44492713,213.8,213.79,0.69]
[1757334300240,58.93492713,213.8,213.79,0.69]
[1757334300945,58.93492713,213.8,213.79,0.03]
[1757334301147,59.59492713,213.8,213.79,0.03]
[1757334301438,61.46745481,213.8,213.79,0.03]
[1757334302924,24.70745481,213.8,213.79,0.03]
[1757334303247,61.44745481,213.8,213.79,0.03]
[1757334304120,60.78745481,213.8,213.79,0.03]
[1757334304520,24.04745481,213.8,213.79,0.03]
[1757334304741,60.76745481,213.8,213.79,0.03]
[1757334307045,6.54979615,213.8,213.79,0.7]
[1757334307233,1.87252768,213.8,213.79,0.7]
[1757334307548,173.79701566,213.82,213.79,4.60206465]
[1757334308045,173.79701566,213.82,213.8,0.67]
[1757334308557,137.07701566,213.82,213.8,0.67]
[1757334308733,173.79701566,213.82,213.8,0.67]
[1757334309349,185.4890931,213.82,213.81,0.67]
[1757334309522,13.59559401,213.81,213.79,0.03]
[1757334309717,54.19765866,213.8,213.79,0.03]
[1757334309938,54.21765866,213.8,213.79,0.03]
[1757334310561,58.89492713,213.8,213.79,0.03]
[1757334311129,59.61492713,213.8,213.79,0.03]
[1757334314031,85.61492713,213.8,213.79,0.03]
[1757334315135,84.89492713,213.8,213.79,0.03]
[1757334315336,85.61492713,213.8,213.79,0.03]
[1757334315537,84.89492713,213.8,213.79,0.03]
[1757334315939,48.17492713,213.8,213.79,0.03]
[1757334316132,84.85492713,213.8,213.79,0.03]
[1757334316634,18.33286248,213.8,213.79,0.7]
[1757334316945,55.01286248,213.8,213.79,0.7]
[1757334317147,0.06,213.8,213.79,0.7]
[1757334317332,8.63933312,213.8,213.79,0.03]
[1757334317534,81.01286248,213.8,213.79,0.7]
[1757334317946,55.01286248,213.8,213.79,0.7]
[1757334318454,55.05286248,213.8,213.79,0.7]
[1757334318754,41.45726847,213.8,213.79,0.7]
[1757334319856,55.05286248,213.8,213.79,0.03]
[1757334320237,58.95492713,213.8,213.79,0.03]
[1757334321955,55.05286248,213.8,213.79,0.03]
[1757334323363,55.05286248,213.8,213.79,0.7]
[1757334324060,41.39726847,213.8,213.79,0.7]
[1757334324538,4.73726847,213.8,213.79,0.7]
[1757334324742,41.39726847,213.8,213.79,0.7]
[1757334326542,4.73726847,213.8,213.79,0.7]
[1757334326771,41.37726847,213.8,213.79,0.7]
[1757334327065,4.73726847,213.8,213.79,0.7]
[1757334327465,41.35726847,213.8,213.79,0.7]
[1757334327964,0.06,213.8,213.79,4.60206465]
[1757334334470,0.06,213.8,213.79,9.2795519]
[1757334343053,0.06,213.8,213.79,41.12206465]
[1757334343253,0.06,213.8,213.79,3.93206465]
[1757334344374,0.06,213.8,213.79,2.52587329]
[1757334344676,0.06,213.8,213.79,3.24587329]
[1757334345975,0.06,213.8,213.79,7.92336054]
[1757334347372,0.06,213.8,213.79,3.24587329]
[1757334347864,0.06,213.8,213.79,2.52587329]
[1757334350172,0.06,213.8,213.79,3.24587329]
[1757334350780,0.06,213.8,213.79,7.92336054]
[1757334355561,0.06,213.8,213.79,7.20336054]
[1757334355866,0.06,213.8,213.79,7.92336054]
[1757334362390,0.06,213.83,213.82,26.0]
[1757334362570,0.06,213.83,213.82,74.87936645]
[1757334362775,0.06,213.83,213.82,75.59936645]
[1757334363380,0.06,213.83,213.82,70.29270426]
[1757334363563,0.06,213.83,213.82,33.89270426]
[1757334363768,0.06,213.83,213.82,70.29270426]
[1757334364271,0.06,213.83,213.82,2.49587329]
[1757334364468,0.06,213.83,213.82,64.89587329]
[1757334364866,0.06,213.83,213.82,69.57270426]
[1757334365063,0.06,213.83,213.82,70.29270426]
[1757334365789,0.06,213.83,213.82,69.57270426]
[1757334369503,0.06,213.83,213.82,70.27270426]
[1757334370177,0.06,213.83,213.82,80.25619742]
[1757334371488,0.06,213.83,213.82,70.27270426]
[1757334373298,0.06,213.83,213.82,26.0]
[1757334373473,0.06,213.83,213.82,64.89587329]
[1757334373674,0.06,213.83,213.82,67.07683097]
[1757334373887,0.06,213.83,213.82,69.57270426]
[1757334374289,0.06,213.83,213.82,26.0]
[1757334374485,0.06,213.83,213.82,64.89587329]
[1757334375887,0.06,213.83,213.82,69.57270426]
[1757334376086,0.06,213.83,213.82,64.89587329]
[1757334377907,0.06,213.83,213.82,69.57270426]
[1757334378118,0.06,213.83,213.82,33.17270426]
[1757334378310,0.74,213.83,213.82,64.89587329]
[1757334379398,0.06,213.83,213.82,64.89587329]
[1757334380508,0.06,213.83,213.82,28.49587329]
[1757334380700,0.06,213.83,213.82,64.89587329]
[1757334383115,0.06,213.83,213.82,62.4]
[1757334383302,0.74,213.83,213.82,2.49587329]
[1757334383908,7.34758891,213.83,213.82,2.49587329]
[1757334384109,7.34758891,213.83,213.81,2.49587329]
[1757334384309,0.68,213.82,213.81,2.49587329]
[1757334385099,11.34432862,213.83,213.81,2.49587329]
[1757334385299,0.68,213.82,213.81,2.49587329]
[1757334387540,5.35683097,213.82,213.81,2.49587329]
[1757334388707,6.66758891,213.83,213.81,3.19587329]
[1757334388907,6.66758891,213.83,213.82,2.49587329]
[1757334389304,11.34420117,213.83,213.82,2.49587329]
[1757334389516,12.02420117,213.83,213.82,2.49587329]
[1757334391304,6.66758891,213.83,213.82,2.49587329]
[1757334395325,0.06,213.83,213.82,2.49587329]
[1757334395518,0.06,213.83,213.82,3.19587329]
[1757334395721,0.06,213.83,213.82,2.49587329]
[1757334402531,0.06,213.83,213.82,7.87270426]
[1757334403120,0.06,213.83,213.82,33.87270426]
[1757334403421,0.06,213.83,213.82,43.85619742]
[1757334403822,0.06,213.83,213.82,31.37683097]
[1757334404022,0.06,213.83,213.82,33.87270426]
[1757334405213,0.06,213.83,213.82,70.25270426]
[1757334405622,0.06,213.83,213.82,72.74857755]
[1757334405826,0.06,213.83,213.82,70.25270426]
[1757334406428,0.06,213.83,213.82,71.65416148]
[1757334408053,0.06,213.83,213.82,70.95416148]
[1757334408628,0.06,213.83,213.82,29.89733051]
[1757334408828,0.06,213.83,213.82,66.27733051]
[1757334411044,0.06,213.83,213.82,66.97733051]
[1757334411350,0.06,213.83,213.82,71.65416148]
[1757334411730,0.06,213.83,213.82,35.27416148]
[1757334411941,0.06,213.83,213.82,71.65416148]
[1757334412443,0.06,213.83,213.82,70.95416148]
[1757334413152,0.06,213.83,213.82,71.65416148]
[1757334420933,0.06,213.84,213.82,49.55149199]
[1757334421128,0.06,213.84,213.83,8.49466102]
[1757334421329,0.06,213.84,213.83,13.17127328]
[1757334422842,0.06,213.84,213.83,49.53127328]
[1757334426733,0.06,213.85,213.83,49.53127328]
[1757334427046,0.06,213.85,213.84,8.50466102]
[1757334427556,0.06,213.85,213.84,13.18105458]
[1757334428453,0.06,213.85,213.84,12.47105458]
[1757334428656,0.06,213.85,213.84,13.18105458]
[1757334428859,0.06,213.85,213.84,49.54105458]
[1757334429857,0.06,213.85,213.84,13.18105458]
[1757334430037,0.06,213.85,213.84,49.54105458]
[1757334442965,0.06,213.85,213.84,49.57105458]
[1757334448067,0.06,213.87,213.86,26.0]
[1757334448376,0.06,213.89,213.87,13.59559401]
[1757334448559,0.68,213.93,213.87,13.59559401]
[1757334448560,1.93086364,213.9,213.88,40.23733051]
[1757334448870,0.06,213.9,213.89,3.89733051]
[1757334449082,0.06,213.9,213.89,8.59945562]
[1757334449250,0.06,213.9,213.89,3.89733051]
[1757334449671,0.06,213.9,213.89,8.57263089]
[1757334450271,0.06,213.9,213.89,44.89263089]
[1757334452067,0.06,213.9,213.89,45.60263089]
[1757334452469,0.06,213.9,213.89,44.89263089]
[1757334454774,0.06,213.9,213.89,45.60263089]
[1757334456987,0.06,213.9,213.87,13.59559401]
[1757334457159,0.06,213.9,213.89,8.57263089]
[1757334458261,0.06,213.9,213.89,44.89263089]
[1757334460071,0.77,213.9,213.89,66.21733051]
[1757334460272,0.06,213.9,213.89,66.21733051]
[1757334460662,0.77,213.9,213.89,66.21733051]
[1757334461067,0.77,213.9,213.89,66.24733051]
[1757334461584,0.77,213.9,213.89,29.92733051]
[1757334461783,0.77,213.9,213.89,66.22733051]
[1757334461983,0.06,213.9,213.89,66.22733051]
[1757334462469,0.06,213.9,213.89,70.90263089]
[1757334462666,0.06,213.9,213.89,67.00530038]
[1757334466885,0.06,213.9,213.89,30.70530038]
[1757334467087,0.06,213.9,213.89,67.00530038]
[1757334469094,0.06,213.9,213.89,62.33]
[1757334471086,0.06,213.92,213.9,13.59559401]
[1757334471279,0.06,213.92,213.91,62.3]
[1757334471480,0.06,213.92,213.91,63.01]
[1757334472698,0.06,213.92,213.91,67.68486326]
[1757334480800,0.06,213.92,213.91,81.28045727]
[1757334481105,0.06,213.93,213.92,13.59559401]
[1757334481281,0.06,213.93,213.92,14.77305848]
[1757334482297,0.06,213.93,213.92,51.05305848]
[1757334483095,0.06,213.93,213.92,19.4477032]
[1757334483419,0.06,213.93,213.92,55.7277032]
[1757334486518,0.06,213.93,213.92,4.67464472]
[1757334486693,0.06,213.93,213.92,66.95464472]
[1757334489028,0.06,213.93,213.92,67.67464472]
[1757334490013,0.06,213.93,213.92,81.7377032]
[1757334494904,0.06,213.93,213.92,44.27023873]
[1757334495202,0.06,213.93,213.92,80.53023873]
[1757334495914,0.06,213.93,213.92,81.25023873]
[1757334496809,0.06,213.93,213.92,81.28023873]
[1757334497924,0.06,213.93,213.92,80.56023873]
[1757334498837,0.78,213.93,213.92,44.30023873]
[1757334499038,0.06,213.93,213.92,80.56023873]
[1757334499927,0.06,213.93,213.92,81.28023873]
[1757334501624,0.06,213.93,213.92,80.56023873]
[1757334503423,0.06,213.93,213.92,81.28023873]
[1757334504724,0.06,213.93,213.92,80.56023873]
[1757334505123,0.06,213.93,213.92,81.28023873]
[1757334506434,0.06,213.93,213.92,80.56023873]
[1757334512441,0.06,213.93,213.92,81.28023873]
[1757334516948,0.06,213.93,213.92,66.94464472]
[1757334523060,0.06,213.93,213.92,30.70464472]
[1757334523263,0.06,213.93,213.92,66.92464472]
[1757334526765,0.06,213.93,213.92,30.70464472]
[1757334527069,0.06,213.93,213.92,66.92464472]
[1757334527565,0.01527668,213.93,213.92,66.92464472]
[1757334528968,0.01527668,213.93,213.92,30.70464472]
[1757334529149,0.01527668,213.93,213.92,26.03]
[1757334529150,0.70527668,213.93,213.92,26.03]
[1757334529462,0.70527668,213.93,213.92,62.25]
[1757334529969,0.70527668,213.93,213.92,66.92464472]
[1757334531343,0.01527668,213.93,213.92,66.92464472]
[1757334532250,0.01527668,213.93,213.92,67.59464472]
[1757334533554,0.01527668,213.93,213.92,66.92464472]
[1757334534674,0.01527668,213.93,213.92,66.90464472]
[1757334536057,0.01527668,213.93,213.92,67.57464472]
[1757334537466,0.06,213.95,213.92,79.26125653]
[1757334537668,0.75,213.95,213.92,79.26125653]
[1757334537863,0.75,213.95,213.92,78.59125653]
[1757334539270,0.69,213.94,213.92,78.59125653]
[1757334539476,0.06,213.95,213.92,78.59125653]
[1757334539656,0.75,213.95,213.92,78.59125653]
[1757334540275,0.06,213.95,213.92,79.26125653]
[1757334540463,0.75,213.95,213.92,79.26125653]
[1757334542078,0.06,213.95,213.92,79.26125653]
[1757334542283,13.69559401,214.07,213.96,26.0]
[1757334542457,13.69559401,214.07,213.97,38.85252883]
[1757334542660,13.69559401,214.07,213.98,2.65252883]
[1757334542862,13.69559401,214.07,213.99,2.65252883]
[1757334543062,13.69559401,214.07,214.0,2.65252883]
[1757334543262,13.69559401,214.07,214.01,2.65252883]
[1757334544267,5.39246051,214.02,214.01,2.65252883]
[1757334546386,0.72,214.02,214.01,2.65252883]
[1757334547265,84.27228928,214.03,214.01,2.65252883]
[1757334547266,77.10318878,214.03,214.01,2.65252883]
[1757334547468,77.10318878,214.03,214.02,2.65252883]
[1757334551083,77.16318878,214.03,214.02,2.65252883]
[1757334552291,91.18810638,214.03,214.02,2.65252883]
[1757334553074,77.16318878,214.03,214.02,2.65252883]
[1757334557503,65.32923064,214.03,214.02,2.65252883]
[1757334560000,79.35414825,214.03,214.02,2.65252883]
[1757334562400,71.46484283,214.03,214.02,2.65252883]
[1757334564113,18.75720689,214.03,214.02,2.65252883]
[1757334565214,22.65151383,214.03,214.02,2.65252883]
[1757334565788,22.65151383,214.03,214.02,3.32252883]